bitfinex/quotes_SOLUSD_20250123
["timestamp","ask_amount","ask_price","bid_price","bid_amount"]
[1737606450069,3.9906061,245.62,245.57,18.97715559]
[1737606450458,5.0,245.61,245.57,18.97715559]
[1737606450661,3.9906061,245.62,245.57,18.97715559]
[1737606450866,5.0,245.63,245.57,23.04925559]
[1737606451053,5.0,245.6,245.57,18.97715559]
[1737606451580,5.0,245.6,245.55,18.97715559]
[1737606451790,8.9906061,245.6,245.55,18.97715559]
[1737606453066,5.0,245.58,245.55,18.97715559]
[1737606453576,3.9906061,245.57,245.55,18.97715559]
[1737606453765,3.9906061,245.6,245.55,18.97715559]
[1737606454068,5.0,245.59,245.57,18.97715559]
[1737606456058,3.9906061,245.58,245.57,18.97715559]
[1737606456554,3.9906061,245.58,245.56,18.97715559]
[1737606456754,5.0,245.57,245.56,18.97715559]
[1737606457057,3.9906061,245.57,245.56,18.97715559]
[1737606459364,3.9906061,245.59,245.56,18.97715559]
[1737606459573,0.063,245.61,245.58,18.97715559]
[1737606459775,5.063,245.61,245.6,18.97715559]
[1737606460999,8.9906061,245.59,245.58,18.97715559]
[1737606461485,5.0,245.55,245.54,18.97715559]
[1737606461694,8.9906061,245.55,245.52,19.00715559]
[1737606462063,5.0,245.53,245.52,19.00715559]
[1737606463271,8.9906061,245.53,245.52,19.00715559]
[1737606463470,8.9906061,245.53,245.52,0.03]
[1737606463686,8.4906061,245.53,245.52,0.03]
[1737606464876,3.9906061,245.49,245.43,72.69823899]
[1737606465085,4.5,245.48,245.45,18.97715559]
[1737606467276,8.4906061,245.46,245.43,91.67539458]
[1737606468487,4.5,245.46,245.43,91.67539458]
[1737606468978,4.5,245.46,245.45,0.03]
[1737606469587,4.5,245.46,245.45,19.00715559]
[1737606470379,4.5,245.5,245.45,19.00715559]
[1737606470585,4.5,245.5,245.49,18.97715559]
[1737606470972,3.9906061,245.49,245.48,18.97715559]
[1737606471688,8.4906061,245.5,245.48,18.97715559]
[1737606472391,3.9906061,245.44,245.43,71.89979683]
[1737606473504,4.5,245.45,245.43,71.89979683]
[1737606476195,4.5,245.45,245.43,90.87695242]
[1737606476602,8.4906061,245.48,245.43,94.95125242]
[1737606476806,4.5,245.48,245.47,18.97715559]
[1737606476984,3.9906061,245.52,245.47,18.97715559]
[1737606477174,3.9906061,245.52,245.49,18.97715559]
[1737606477373,4.5,245.5,245.49,18.97715559]
[1737606477673,3.9906061,245.52,245.49,18.97715559]
[1737606477874,4.5,245.5,245.49,18.97715559]
[1737606478076,3.9906061,245.56,245.5,4.0733]
[1737606478385,3.9906061,245.56,245.53,18.97715559]
[1737606478695,4.5,245.54,245.53,18.97715559]
[1737606479185,8.4906061,245.56,245.53,18.97715559]
[1737606479490,4.5,245.54,245.53,18.97715559]
[1737606479690,4.5,245.56,245.53,18.97715559]
[1737606479900,4.5,245.54,245.53,18.97715559]
[1737606480198,4.5,245.52,245.47,18.97715559]
[1737606480694,8.4906061,245.52,245.47,18.97715559]
[1737606480896,4.5,245.49,245.47,18.97715559]
[1737606481597,0.063,245.52,245.47,18.97715559]
[1737606481918,0.063,245.52,245.51,18.97715559]
[1737606482325,0.063,245.52,245.51,44.45871118]
[1737606482813,0.063,245.52,245.51,25.48155559]
[1737606483119,0.063,245.52,245.51,44.45871118]
[1737606483484,0.063,245.61,245.52,3.5093939]
[1737606483683,0.063,245.61,245.6,18.97715559]
[1737606484504,4.5,245.68,245.6,18.97715559]
[1737606484804,4.5,245.68,245.62,18.97715559]
[1737606485187,4.5,245.7,245.64,18.97715559]
[1737606485395,4.5,245.68,245.64,18.97715559]
[1737606485591,4.5,245.64,245.6,18.97715559]
[1737606485797,3.9906061,245.66,245.53,3.5093939]
[1737606485798,4.5,245.62,245.58,18.97715559]
[1737606485994,4.5,245.62,245.53,4.0726]
[1737606485995,4.5,245.62,245.56,18.97715559]
[1737606486703,3.9906061,245.63,245.58,18.97715559]
[1737606487002,4.5,245.61,245.56,18.97715559]
[1737606488008,4.5,245.6,245.54,18.97715559]
[1737606488227,4.5,245.6,245.56,18.97715559]
[1737606489927,4.5,245.6,245.54,4.0725]
[1737606489928,4.5,245.58,245.54,18.97715559]
[1737606490710,8.4906061,245.56,245.52,18.97715559]
[1737606490909,8.4906061,245.56,245.5,18.97715559]
[1737606491615,8.4906061,245.44,245.28,18.97715559]
[1737606491801,4.5,245.28,245.23,18.97715559]
[1737606492117,3.9906061,245.28,245.16,0.5]
[1737606492301,4.5,245.31,245.19,0.5]
[1737606492695,4.5,245.33,245.22,3.5093939]
[1737606492903,8.4906061,245.34,245.21,0.5]
[1737606493193,3.9906061,245.4,245.29,0.5]
[1737606493413,22.96776169,245.43,245.33,18.97715559]
[1737606493803,22.96776169,245.43,245.34,0.10132624]
[1737606493804,4.5,245.41,245.34,0.10132624]
[1737606494011,16.287728,245.52,245.39,18.97715559]
[1737606494193,18.97715559,245.53,245.42,18.97715559]
[1737606494398,8.4906061,245.54,245.45,18.97715559]
[1737606494709,8.4906061,245.54,245.45,330.97715559]
[1737606495120,4.563,245.52,245.45,330.97715559]
[1737606495298,0.063,245.52,245.45,330.97715559]
[1737606495505,4.5,245.51,245.45,330.97715559]
[1737606495709,0.063,245.52,245.45,330.97715559]
[1737606495907,0.063,245.52,245.51,18.97715559]
[1737606497008,0.063,245.52,245.49,18.97715559]
[1737606497700,0.063,245.52,245.47,18.97715559]
[1737606497912,0.063,245.52,245.51,18.97715559]
[1737606498413,0.063,245.52,245.49,18.97715559]
[1737606498621,4.563,245.52,245.47,18.97715559]
[1737606498822,0.063,245.52,245.45,330.97715559]
[1737606499010,0.063,245.52,245.47,18.97715559]
[1737606499214,0.063,245.52,245.47,23.05085559]
[1737606499433,4.0536061,245.52,245.47,23.05085559]
[1737606500515,8.5536061,245.52,245.47,18.97715559]
[1737606500719,4.5,245.48,245.41,18.97715559]
[1737606500912,3.9906061,245.49,245.41,18.97715559]
[1737606501121,3.9906061,245.44,245.41,18.97715559]
[1737606501318,3.9906061,245.44,245.39,18.97715559]
[1737606501508,3.9906061,245.44,245.41,18.97715559]
[1737606501713,3.9906061,245.47,245.41,18.97715559]
[1737606502034,3.9906061,245.44,245.41,18.97715559]
[1737606502214,8.4906061,245.47,245.41,18.97715559]
[1737606502415,3.9906061,245.44,245.41,330.97715559]
[1737606502616,3.9906061,245.48,245.41,330.97715559]
[1737606502933,4.5,245.49,245.43,18.97715559]
[1737606503134,3.9906061,245.51,245.47,18.97715559]
[1737606503520,3.9906061,245.51,245.45,18.97715559]
[1737606504715,3.9906061,245.49,245.43,18.97715559]
[1737606505030,3.9906061,245.47,245.43,18.97715559]
[1737606505631,3.9906061,245.47,245.43,23.05145559]
[1737606506147,3.9906061,245.49,245.43,335.05145559]
[1737606506328,3.9906061,245.47,245.43,335.08145559]
[1737606506840,3.9906061,245.47,245.43,331.00715559]
[1737606507028,4.5,245.48,245.43,0.03]
[1737606507225,3.9906061,245.45,245.43,0.03]
[1737606507431,4.5,245.44,245.43,0.03]
[1737606507733,3.9906061,245.45,245.43,0.03]
[1737606508039,4.5,245.4,245.21,16.285109]
[1737606508236,3.9906061,245.36,245.3,18.97715559]
[1737606508642,22.96776169,245.4,245.31,0.10133862]
[1737606508939,4.5,245.39,245.32,18.97715559]
[1737606509340,3.9906061,245.4,245.33,0.10133036]
[1737606510038,4.5,245.37,245.33,312.10133036]
[1737606510715,3.9906061,245.34,245.33,0.10133036]
[1737606510914,8.4906061,245.34,245.33,0.10133036]
[1737606511922,8.4906061,245.41,245.33,0.10133036]
[1737606512127,7.9906061,245.4,245.33,4.17733036]
[1737606512338,7.9906061,245.4,245.33,0.10133036]
[1737606512540,7.9906061,245.44,245.36,18.97715559]
[1737606512747,7.9906061,245.44,245.36,23.05265559]
[1737606512748,3.4906061,245.41,245.36,23.05265559]
[1737606512930,4.5,245.4,245.34,18.97715559]
[1737606513126,4.5,245.4,245.28,10.6605939]
[1737606513127,4.5,245.38,245.32,18.97715559]
[1737606513327,3.4906061,245.39,245.32,18.97715559]
[1737606513855,7.9906061,245.41,245.36,18.97715559]
[1737606514147,3.4906061,245.38,245.34,18.97715559]
[1737606514348,3.4906061,245.36,245.3,18.97715559]
[1737606514641,4.5,245.34,245.29,4.0768]
[1737606514826,3.4906061,245.34,245.29,4.0768]
[1737606515029,7.9906061,245.34,245.29,4.0768]
[1737606515560,3.4906061,245.3,245.26,18.97715559]
[1737606515741,7.9906061,245.34,245.26,18.97715559]
[1737606515944,4.5,245.31,245.26,18.97715559]
[1737606516143,4.5,245.31,245.25,4.1073]
[1737606516361,4.5,245.31,245.25,0.03]
[1737606516362,3.4906061,245.26,245.25,0.03]
[1737606517061,3.4906061,245.26,245.25,0.13136342]
[1737606518565,3.4906061,245.33,245.25,0.13136342]
[1737606518733,3.4906061,245.33,245.26,18.97715559]
[1737606518926,3.4906061,245.33,245.27,4.0771]
[1737606519436,3.4906061,245.39,245.32,18.97715559]
[1737606519642,4.5,245.38,245.32,18.97715559]
[1737606519843,7.9906061,245.35,245.32,18.97715559]
[1737606520045,3.4906061,245.35,245.32,18.97715559]
[1737606520249,3.4906061,245.37,245.32,18.97715559]
[1737606520949,4.5,245.37,245.34,18.97715559]
[1737606521143,7.9906061,245.37,245.32,335.05335559]
[1737606521740,3.4906061,245.37,245.32,335.05335559]
[1737606522052,7.9906061,245.38,245.34,18.97715559]
[1737606522551,3.4906061,245.38,245.32,23.05335559]
[1737606522752,3.5536061,245.4,245.34,18.97715559]
[1737606522947,3.4906061,245.35,245.34,18.97715559]
[1737606523152,0.063,245.4,245.34,23.05295559]
[1737606523328,0.063,245.4,245.39,18.97715559]
[1737606523834,0.063,245.4,245.39,18.73259559]
[1737606524935,0.063,245.4,245.39,334.80769559]
[1737606525838,0.0001,245.4,245.39,334.80769559]
[1737606527154,0.0001,245.4,245.39,354.28485118]
[1737606527549,0.063,245.52,245.42,20.5]
[1737606527744,0.063,245.52,245.5,18.97715559]
[1737606528256,0.063,245.52,245.51,18.97715559]
[1737606528434,0.0001,245.52,245.51,19.47715559]
[1737606528955,0.0001,245.52,245.51,23.55025559]
[1737606529543,0.0001,245.52,245.51,23.05025559]
[1737606530157,3.5536061,245.65,245.54,20.5]
[1737606530361,3.5536061,245.65,245.62,18.97715559]
[1737606530863,0.063,245.65,245.64,23.04805559]
[1737606531067,0.063,245.65,245.64,18.97715559]
[1737606531240,3.5536061,245.65,245.64,18.97715559]
[1737606531557,0.063,245.65,245.64,18.97715559]
[1737606532466,3.4906061,245.64,245.62,18.97715559]
[1737606533747,0.063,245.65,245.62,23.04835559]
[1737606534265,0.063,245.65,245.64,18.97715559]
[1737606535557,3.4906061,245.63,245.6,18.97715559]
[1737606535747,3.4906061,245.61,245.58,18.97715559]
[1737606535947,3.4906061,245.6,245.58,18.97715559]
[1737606536261,0.063,245.65,245.58,18.97715559]
[1737606536262,0.063,245.65,245.61,20.0]
[1737606536460,0.063,245.65,245.64,18.97715559]
[1737606536655,0.063,245.65,245.64,37.95431118]
[1737606536858,0.063,245.65,245.64,42.52521118]
[1737606537248,0.063,245.65,245.64,23.04805559]
[1737606538053,0.063,245.65,245.64,18.97715559]
[1737606538253,3.5536061,245.65,245.62,18.97715559]
[1737606538862,3.4906061,245.63,245.6,18.97715559]
[1737606539062,4.5,245.62,245.58,18.97715559]
[1737606539268,3.4906061,245.61,245.56,18.97715559]
[1737606541068,3.4906061,245.63,245.6,18.97715559]
[1737606541870,4.5,245.61,245.6,18.97715559]
[1737606542058,3.4906061,245.6,245.56,18.97715559]
[1737606542446,4.5,245.58,245.54,330.97715559]
[1737606542651,7.9906061,245.56,245.52,18.97715559]
[1737606542970,7.9906061,245.56,245.5,25.15165559]
[1737606543351,16.275654,245.63,245.47,4.0738]
[1737606543352,7.9906061,245.53,245.47,4.0738]
[1737606543776,7.9906061,245.49,245.44,25.15165559]
[1737606544076,4.5,245.47,245.41,18.97715559]
[1737606544273,7.9906061,245.45,245.39,18.97715559]
[1737606544780,3.4906061,245.45,245.39,18.97715559]
[1737606544978,3.4906061,245.45,245.4,4.0749]
[1737606545177,7.9906061,245.48,245.4,4.0749]
[1737606545381,3.4906061,245.45,245.4,4.0749]
[1737606545753,3.4906061,245.45,245.4,316.0749]
[1737606546083,3.4906061,245.45,245.41,18.97715559]
[1737606546459,10.2421,245.61,245.4,316.0749]
[1737606546460,4.5,245.51,245.43,18.97715559]
[1737606546655,3.4906061,245.49,245.48,18.97715559]
[1737606546979,3.4906061,245.5,245.46,18.97715559]
[1737606548473,4.5,245.51,245.46,23.05095559]
[1737606548778,4.5,245.49,245.46,23.05095559]
[1737606549601,4.5,245.49,245.46,335.05095559]
[1737606551702,3.4906061,245.52,245.46,335.05095559]
[1737606551886,3.4906061,245.5,245.46,335.05095559]
[1737606552290,4.5,245.5,245.46,335.05095559]
[1737606552498,4.5,245.53,245.48,18.97715559]
[1737606553375,4.5,245.51,245.48,18.97715559]
[1737606553802,4.5,245.51,245.48,23.05075559]
[1737606553984,3.4906061,245.47,245.46,18.97715559]
[1737606554481,7.9906061,245.47,245.44,18.97715559]
[1737606554681,3.4906061,245.45,245.41,4.0748]
[1737606554887,3.4906061,245.43,245.41,4.0748]
[1737606555695,3.4906061,245.43,245.41,316.0748]
[1737606556004,7.9906061,245.43,245.41,312.0]
[1737606556204,7.9906061,245.46,245.42,18.97715559]
[1737606556384,3.4906061,245.46,245.44,18.97715559]
[1737606556583,3.4906061,245.48,245.44,18.97715559]
[1737606557505,3.4906061,245.53,245.46,18.97715559]
[1737606557689,4.5,245.53,245.5,18.97715559]
[1737606558005,3.4906061,245.55,245.51,4.0731]
[1737606558385,3.4906061,245.55,245.52,18.97715559]
[1737606558591,3.4906061,245.57,245.52,18.97715559]
[1737606558898,3.4906061,245.57,245.54,18.97715559]
[1737606559810,3.4906061,245.57,245.54,330.97715559]
[1737606560010,0.063,245.61,245.56,18.97715559]
[1737606560187,0.063,245.61,245.6,18.97715559]
[1737606562386,0.0001,245.61,245.6,23.04875559]
[1737606562590,0.0001,245.61,245.6,28.71254949]
[1737606562787,0.0001,245.61,245.6,52.48943349]
[1737606562993,0.0001,245.61,245.6,71.46658908]
[1737606563194,3.4906061,245.73,245.68,20.0]
[1737606563397,3.4906061,245.73,245.72,18.97715559]
[1737606563590,3.4906061,245.73,245.72,330.97715559]
[1737606564404,0.063,245.77,245.72,23.04675559]
[1737606564607,0.063,245.77,245.76,18.97715559]
[1737606564808,0.063,245.77,245.76,37.95431118]
[1737606565006,0.063,245.86,245.79,20.5]
[1737606565309,0.063,245.86,245.85,18.97715559]
[1737606565519,0.0001,245.86,245.85,19.47715559]
[1737606565888,0.0001,245.86,245.85,66.24058908]
[1737606566501,3.4906061,246.04,245.93,0.5]
[1737606566710,3.4906061,246.04,246.0,18.97715559]
[1737606566913,0.063,246.07,246.02,18.97715559]
[1737606567087,4.5,246.06,246.04,18.97715559]
[1737606567416,4.5,246.03,245.99,312.0]
[1737606567602,3.4906061,246.0,245.99,312.0]
[1737606567789,4.5,246.03,245.99,312.0]
[1737606567991,3.4906061,246.0,245.99,312.0]
[1737606568204,3.4906061,246.02,245.99,312.0]
[1737606568411,4.5,246.03,245.99,312.0]
[1737606568919,3.4906061,245.97,245.92,4.0663]
[1737606569090,3.4906061,245.97,245.94,18.97715559]
[1737606569405,3.4906061,246.01,245.96,18.97715559]
[1737606569604,3.4906061,246.03,245.98,18.97715559]
[1737606569802,3.4906061,245.99,245.98,18.97715559]
[1737606570700,3.4906061,245.99,245.96,18.97715559]
[1737606570905,3.4906061,245.99,245.94,18.97715559]
[1737606571101,3.4906061,245.95,245.94,18.97715559]
[1737606572107,4.5,245.95,245.92,18.97715559]
[1737606572301,3.4906061,245.91,245.88,18.97715559]
[1737606572811,3.4906061,245.91,245.9,20.0]
[1737606573607,3.4906061,245.94,245.9,18.97715559]
[1737606573815,4.5,245.95,245.92,18.97715559]
[1737606573985,4.5,245.95,245.94,20.0]
[1737606574815,3.4906061,245.92,245.81,10.5944939]
[1737606575109,4.5,245.91,245.88,18.97715559]
[1737606575315,4.5,245.89,245.88,20.0]
[1737606575516,4.5,245.87,245.84,18.97715559]
[1737606576098,7.9906061,245.85,245.82,18.97715559]
[1737606576612,3.4906061,245.87,245.84,18.97715559]
[1737606576913,7.9906061,245.89,245.84,18.97715559]
[1737606577093,3.4906061,245.85,245.84,18.97715559]
[1737606577298,3.4906061,245.86,245.84,18.97715559]
[1737606577516,3.4906061,245.9,245.87,20.0]
[1737606577699,3.4906061,245.9,245.88,18.97715559]
[1737606578016,3.4906061,245.89,245.88,18.97715559]
[1737606578204,3.4906061,245.92,245.88,18.97715559]
[1737606578396,3.4906061,245.94,245.88,18.97715559]
[1737606578598,3.4906061,245.94,245.88,330.97715559]
[1737606578798,7.9906061,245.92,245.89,4.0668]
[1737606579599,4.5,245.92,245.89,4.0668]
[1737606580516,7.9906061,245.94,245.89,4.0668]
[1737606580813,4.5,245.92,245.88,18.97715559]
[1737606581011,3.4906061,245.89,245.88,23.04405559]
[1737606582510,7.9906061,245.89,245.86,19.00715559]
[1737606582815,7.9906061,245.89,245.86,0.03]
[1737606582995,7.9906061,245.87,245.86,0.03]
[1737606583396,26.96776169,245.87,245.86,0.03]
[1737606584625,31.03486169,245.87,245.86,0.03]
[1737606586101,37.53556169,245.87,245.86,0.03]
[1737606586502,61.31244569,245.87,245.86,0.03]
[1737606586716,62.84434569,245.87,245.86,0.03]
[1737606587022,67.84434569,245.87,245.86,0.0001]
[1737606587316,3.4906061,245.76,245.7,18.97715559]
[1737606587521,3.4906061,245.75,245.72,18.97715559]
[1737606587824,7.9906061,245.79,245.74,18.97715559]
[1737606588017,7.9906061,245.79,245.74,23.04635559]
[1737606588621,3.4906061,245.75,245.74,23.04635559]
[1737606588813,4.5,245.76,245.74,312.0]
[1737606589015,4.5,245.74,245.7,18.97715559]
[1737606589538,4.5,245.72,245.7,18.97715559]
[1737606589939,4.5,245.74,245.7,23.04705559]
[1737606590608,3.4906061,245.73,245.7,23.04705559]
[1737606591127,4.5,245.72,245.7,23.04705559]
[1737606591426,4.5,245.72,245.68,18.97715559]
[1737606591599,4.5,245.7,245.68,18.97715559]
[1737606592005,4.5,245.7,245.68,330.97715559]
[1737606592601,3.4906061,245.73,245.68,330.97715559]
[1737606592810,3.4906061,245.73,245.72,18.97715559]
[1737606593331,7.9906061,245.8,245.72,18.97715559]
[1737606593518,3.4906061,245.8,245.78,18.97715559]
[1737606593818,3.4906061,245.85,245.78,18.97715559]
[1737606594033,3.4906061,245.85,245.84,18.97715559]
[1737606594224,7.9906061,245.83,245.82,18.97715559]
[1737606594719,7.9906061,245.83,245.8,18.97715559]
[1737606594920,3.4906061,245.81,245.8,18.97715559]
[1737606595324,7.9906061,245.81,245.8,18.97715559]
[1737606595619,7.9906061,245.81,245.78,18.97715559]
[1737606595820,7.9906061,245.81,245.8,312.0]
[1737606596923,7.9906061,245.79,245.78,18.97715559]
[1737606597528,7.9906061,245.71,245.7,19.00715559]
[1737606597712,7.9906061,245.71,245.7,0.03]
[1737606598406,26.96776169,245.71,245.7,0.03]
[1737606601023,50.74464569,245.71,245.7,0.03]
[1737606601224,50.74464569,245.71,245.61,0.03]
[1737606601225,7.9906061,245.62,245.61,0.03]
[1737606601423,26.96776169,245.62,245.61,0.03]
[1737606601929,31.03906169,245.62,245.61,0.03]
[1737606602121,63.07947639,245.62,245.61,0.03]
[1737606602326,63.07947639,245.62,245.44,18.97715559]
[1737606602327,4.5,245.45,245.44,18.97715559]
[1737606602530,3.4906061,245.44,245.42,18.97715559]
[1737606603016,4.5,245.44,245.42,18.97715559]
[1737606603213,18.97715559,245.5,245.42,18.97715559]
[1737606603214,3.4906061,245.48,245.42,18.97715559]
[1737606603441,3.4906061,245.48,245.45,18.97715559]
[1737606603746,4.5,245.55,245.47,18.97715559]
[1737606604034,4.5,245.55,245.53,18.97715559]
[1737606604449,3.4906061,245.58,245.53,18.97715559]
[1737606604616,4.5,245.59,245.55,18.97715559]
[1737606604811,3.4906061,245.6,245.57,18.97715559]
[1737606605036,4.5,245.58,245.57,18.97715559]
[1737606605236,4.5,245.56,245.55,18.97715559]
[1737606605544,3.4906061,245.56,245.52,18.97715559]
[1737606605832,4.5,245.55,245.54,18.97715559]
[1737606606037,3.4906061,245.56,245.52,23.05005559]
[1737606606336,4.5,245.55,245.52,23.05005559]
[1737606606543,4.5,245.55,245.54,18.97715559]
[1737606606750,7.9906061,245.63,245.54,330.97715559]
[1737606607033,3.4906061,245.42,245.41,0.03]
[1737606610318,28.03160618,245.42,245.41,0.03]
[1737606610637,33.03160618,245.42,245.41,0.03]
[1737606610940,7.9906061,245.31,245.3,0.03]
[1737606611134,26.96776169,245.31,245.3,0.03]
[1737606611736,7.9906061,245.31,245.3,0.03]
[1737606613657,26.96776169,245.31,245.3,0.03]
[1737606614122,55.74464569,245.31,245.3,0.03]
[1737606614322,51.50914101,245.31,245.3,0.03]
[1737606614547,50.74464569,245.31,245.3,0.03]
[1737606614842,7.9906061,245.26,245.25,0.03]
[1737606615043,26.96776169,245.26,245.25,0.03]
[1737606616647,50.74464569,245.26,245.25,0.03]
[1737606617229,51.50935786,245.26,245.25,0.03]
[1737606617823,50.74464569,245.26,245.25,0.03]
[1737606618021,7.9906061,245.12,245.11,18.97715559]
[1737606618556,7.9906061,245.12,245.09,18.97715559]
[1737606618736,4.5,245.12,245.11,18.97715559]
[1737606618934,4.5,245.1,245.09,18.97715559]
[1737606620634,12.19,245.27,245.06,27.57973317]
[1737606620635,7.9906061,245.08,245.06,27.57973317]
[1737606620834,3.4906061,245.07,245.06,27.57973317]
[1737606621058,4.5,245.08,245.06,27.57973317]
[1737606621231,3.4906061,245.07,245.06,27.57973317]
[1737606622463,7.5710061,245.07,245.06,27.57973317]
[1737606622756,3.4906061,245.07,245.06,27.57973317]
[1737606629867,3.4906061,245.07,245.06,27.60973317]
[1737606632485,3.4906061,245.07,245.06,27.10973317]
[1737606636570,4.5,245.08,245.06,46.08688876]
[1737606636776,7.9906061,245.13,245.07,4.0804]
[1737606636973,4.5,245.08,245.07,23.05755559]
[1737606637175,7.9906061,245.08,245.07,4.0804]
[1737606637871,7.9906061,245.08,245.07,23.05755559]
[1737606638072,7.9906061,245.08,245.07,4.0804]
[1737606639198,7.9906061,245.08,245.06,27.10973317]
[1737606639673,7.9906061,245.08,245.06,31.19023317]
[1737606639873,7.9906061,245.08,245.06,27.10973317]
[1737606640404,7.9906061,245.08,245.06,31.19023317]
[1737606642110,7.9906061,245.08,245.06,27.10973317]
[1737606642473,8.0536061,245.08,245.06,27.10973317]
[1737606642972,12.1340061,245.08,245.06,27.10973317]
[1737606643180,8.0536061,245.08,245.06,27.10973317]
[1737606644874,8.0536061,245.08,245.06,31.19033317]
[1737606647705,0.063,245.08,245.07,18.97715559]
[1737606648003,4.563,245.08,245.07,18.97715559]
[1737606648498,0.063,245.08,245.07,18.97715559]
[1737606648673,4.563,245.08,245.07,18.97715559]
[1737606648879,8.0536061,245.08,245.06,31.19033317]
[1737606650889,3.4906061,245.07,245.06,31.19033317]
[1737606651603,4.563,245.08,245.06,31.19033317]
[1737606652882,3.4906061,245.07,245.06,31.19033317]
[1737606653779,4.563,245.08,245.06,31.19033317]
[1737606654592,3.4906061,245.07,245.06,31.19033317]
[1737606657483,0.0001,245.08,245.06,31.19033317]
[1737606657685,0.0001,245.08,245.07,11.98219609]
[1737606658607,0.0001,245.08,245.07,16.06259609]
[1737606659098,0.0001,245.08,245.07,4.0804]
[1737606660601,7.9906061,245.07,245.06,27.10973317]
[1737606663999,4.5,245.07,245.06,31.19033317]
[1737606664221,0.0001,245.08,245.06,31.19033317]
[1737606664922,7.9906061,245.07,245.06,31.19033317]
[1737606665303,3.4906061,245.07,245.06,31.19033317]
[1737606665633,0.0001,245.08,245.06,31.19033317]
[1737606665634,3.4907061,245.08,245.06,31.19033317]
[1737606665805,3.4906061,245.07,245.06,31.19033317]
[1737606666312,3.4907061,245.08,245.06,31.19033317]
[1737606666525,3.4907061,245.08,245.07,11.98219609]
[1737606666526,0.0001,245.08,245.07,11.98219609]
[1737606666726,3.4907061,245.08,245.07,11.98219609]
[1737606667025,0.0001,245.08,245.07,11.98219609]
[1737606667206,7.9906061,245.12,245.07,11.98219609]
[1737606667415,3.4906061,245.12,245.07,11.98219609]
[1737606667613,3.4906061,245.14,245.09,18.34839609]
[1737606667815,3.4906061,245.17,245.11,11.98219609]
[1737606668125,3.4906061,245.12,245.11,11.98219609]
[1737606668315,3.4906061,245.17,245.11,11.98219609]
[1737606668511,7.9906061,245.21,245.15,11.98219609]
[1737606668716,7.9906061,245.25,245.19,11.98219609]
[1737606669025,1.6638,245.32,245.23,11.98219609]
[1737606669026,4.5,245.31,245.23,11.98219609]
[1737606669203,3.4906061,245.32,245.28,11.98219609]
[1737606669404,0.063,245.33,245.28,11.98219609]
[1737606669610,6.0313573,245.38,245.32,11.98219609]
[1737606669807,6.0313573,245.38,245.28,12.48219609]
[1737606669808,6.0313573,245.38,245.37,11.98219609]
[1737606670011,5.73e-05,245.38,245.37,11.98219609]
[1737606670405,7.191e-05,245.4,245.39,43.96439218]
[1737606670610,9.59773803,245.52,245.41,0.5]
[1737606670901,10.60713193,245.52,245.5,11.98219609]
[1737606671108,4.5,245.52,245.5,11.98219609]
[1737606671407,3.5536061,245.51,245.5,11.98219609]
[1737606671803,0.063,245.51,245.5,11.98219609]
[1737606673412,4.563,245.51,245.5,11.98219609]
[1737606673612,4.563,245.51,245.48,11.98219609]
[1737606673613,3.4906061,245.5,245.48,11.98219609]
[1737606673823,3.4906061,245.5,245.43,1.64825877]
[1737606673824,3.4906061,245.5,245.49,19.10663562]
[1737606674219,7.9906061,245.5,245.49,19.10663562]
[1737606675318,0.063,245.51,245.43,19.10663562]
[1737606675319,3.4906061,245.44,245.43,19.10663562]
[1737606675629,0.063,245.51,245.43,19.10663562]
[1737606675826,0.063,245.51,245.47,19.10663562]
[1737606676026,19.10663562,245.49,245.41,19.10663562]
[1737606676242,19.10663562,245.49,245.39,19.10663562]
[1737606676544,19.10663562,245.49,245.41,19.10663562]
[1737606676914,19.10663562,245.49,245.36,10.2643]
[1737606676915,19.10663562,245.47,245.39,19.10663562]
[1737606677446,23.18023562,245.49,245.39,19.10663562]
[1737606677608,19.16963562,245.51,245.42,19.10663562]
[1737606677814,0.063,245.51,245.49,19.10663562]
[1737606679828,0.063,245.51,245.49,23.18003562]
[1737606680033,0.063,245.51,245.5,6.0018]
[1737606680728,6.3444,245.7,245.53,27.5]
[1737606680729,4.07,245.7,245.53,27.5]
[1737606680921,0.063,245.71,245.65,19.10663562]
[1737606681332,19.10663562,245.7,245.61,19.10663562]
[1737606681717,19.10663562,245.68,245.59,19.10663562]